[Event "Nakhchivan Open 2024"]
[Site "Nakhchivan"]
[Date "2024.01.11"]
[Round "2.4"]
[White "Ahmadov, Fariz"]
[Black "Kazimov, Anvar"]
[Result "1-0"]
[ECO "B20"]
[WhiteElo "2193"]
[BlackElo "1434"]
[Annotator "TA"]
[PlyCount "63"]
[EventDate "2024.01.11"]
[EventType "swiss"]
[EventCountry "AZE"]
[SourceTitle "playchess.com"]
[Source "ChessBase"]
[SourceQuality "1"]
[TimeControl "5400+30"]

{[%evp 9,63,0,19,6,0,0,43,43,44,28,28,25,18,0,28,-11,40,43,59,47,31,38,62,53,81,62,100,58,87,72,622,618,620,611,745,604,595,391,377,386,374,305,306,305,304,300,304,247,658,653,633,542,915,885,867,860]} 1. e4 {[%emt 0:00:13]} c5 {[%emt 0:00:08]} 2. b3 {[%emt 0:00:08]} Nc6 {[%emt 0:00:11]} 3. Bb2 {[%emt 0:00:06]} d6 {[%emt 0:00:14]} 4. Nf3 {[%emt 0:00:09]} Nf6 {[%emt 0:00:11]} 5. Nc3 {[%emt 0:00:11]} a6 {[%emt 0:00:13]} 6. d4 {[%emt 0:01:01]} cxd4 {[%emt 0:00:06]} 7. Nxd4 {[%emt 0:00:08]} e5 {[%emt 0:00:14]} 8. Nxc6 {[%emt 0:00:28] Weiß steht etwas besser.} bxc6 {[%emt 0:00:08]} 9. Be2 {[%emt 0:00:06]} Be7 {[%emt 0:00:10][%cal Bf8e7,Be7f6,Bf6g7][%mdl 32]} 10. O-O {[%emt 0:00:06]} O-O {[%emt 0:00:11]} 11. Bd3 {[%emt 0:01:26]} Be6 {[%emt 0:01:15]} 12. Ne2 {[%emt 0:00:24]} Nh5 {[%emt 0:03:14] [#]} (12... Qc7 $11) 13. Nd4 $1 $14 {[%emt 0:01:46]} exd4 {[%emt 0:02:31]} 14. Qxh5 {[%emt 0:00:08]} Bf6 {[%emt 0:01:00]} 15. f4 {[%emt 0:00:56][%cal Bf2f4,Bf4f5][%mdl 32]} g6 {[%emt 0:00:44]} 16. Qe2 {[%emt 0:00:50][%cal Of4f5]} Bg7 {[%emt 0:02:11]} 17. f5 {[%emt 0:01:59]} (17. Bxa6 $2 d3 18. cxd3 Bxb2 (18... Rxa6 $2 19. f5 $19) 19. Qxb2 Rxa6 $19) 17... Bc8 {[%emt 0:02:23]} 18. Rf3 {[%emt 0:00:52] Weiß steht aktiver.} (18. Qf2 {vereinfacht} Qf6 19. Bc1 h6 20. fxg6 Qxf2+ 21. Rxf2 fxg6 22. Bc4+) 18... Re8 {[%emt 0:10:44][%cal Oc8f5]} 19. Qf2 {[%emt 0:00:52]} Qf6 $2 {[%emt 0:02:23][%mdl 8192] Danach kann Schwarz die Partie nicht mehr halten.} (19... c5 $16) 20. fxg6 $18 {[%emt 0:00:42]} Qxg6 {[%emt 0:00:10]} 21. Rg3 {[%emt 0:00:13]} Qh6 {[%emt 0:03:08]} 22. Rf1 {[%emt 0:01:54]} Kh8 {[%emt 0:03:09]} 23. Rxg7 {[%emt 0:02:52]} Qxg7 {[%emt 0:01:38]} 24. Bxd4 {[%emt 0:00:09]} (24. Qxf7 Qxf7 25. Rxf7 c5 $11) 24... Re5 {[%emt 0:00:45]} 25. Qxf7 {[%emt 0:01:42]} Qxf7 {[%emt 0:00:12]} 26. Rxf7 {[%emt 0:00:06]} (26. Bxe5+ Kg8 27. Rxf7 (27. Bxd6 $2 Qa7+ 28. Kh1 Be6 $19) 27... Kxf7 28. Bxd6 h5 $16) 26... Kg8 {[%emt 0:00:11]} 27. Rc7 {[%emt 0:00:29]} Rg5 {[%emt 0:06:57]} 28. Bf6 {[%emt 0:02:04]} ({Bloß nicht} 28. Rxc6 Rg6 29. a4 Bg4 $18) 28... Rg4 {[%emt 0:04:16]} (28... Rg6) 29. Bc4+ {[%emt 0:00:27] Ein starkes Läuferpaar. Weiß steht klar auf Gewinn.} Kf8 {[%emt 0:00:18]} 30. Rxh7 {[%emt 0:00:19] [#] Beabsichtigt Rh8+ und Matt.} ({Nicht} 30. Rxc6 Bb7 31. Rxd6 Bxe4 $16) 30... Ke8 {[%emt 0:01:07]} 31. Bf7+ {[%emt 0:01:13]} Kf8 {[%emt 0:00:31]} 32. Bh5 {[%emt 0:00:27] Gewichteter Fehlerwert: Weiß=0.38/Schwarz=0.61.  Verlustzug:     	---       	Schwarz=1     Fehler:       	---       	Schwarz=2     Ungenau:       	Weiß=2     	Schwarz=5     OK:         	Weiß=8     	Schwarz=7     Bester:       	Weiß=2     	Schwarz=3} 1-0

[Event "Nakhchivan Open 2024"]
[Site "Nakhchivan"]
[Date "2024.01.11"]
[Round "2.5"]
[White "Huseynli, Elvin"]
[Black "Mamedjarova, Zeinab"]
[Result "0-1"]
[ECO "D02"]
[WhiteElo "1495"]
[BlackElo "2173"]
[Annotator "RC"]
[PlyCount "86"]
[EventDate "2024.01.11"]
[EventType "swiss"]
[EventCountry "AZE"]
[SourceTitle "playchess.com"]
[Source "ChessBase"]
[SourceQuality "1"]
[TimeControl "5400+30"]

1. d4 {[%emt 0:00:08]} d5 {[%emt 0:01:19]} 2. Nf3 {[%emt 0:00:39]} e6 {[%emt 0:01:10]} 3. Bf4 {[%emt 0:01:26]} Nf6 {[%emt 0:02:20]} 4. Nbd2 {[%emt 0:01:30]} Be7 {[%emt 0:00:17]} 5. e3 {[%emt 0:00:46]} O-O {[%emt 0:00:07]} 6. Bd3 {[%emt 0:00:39]} c5 {[%emt 0:01:25]} 7. c3 {[%emt 0:00:52]} Nbd7 {[%emt 0:02:15]} 8. h3 {[%emt 0:01:54]} c4 {[%emt 0:05:37]} 9. Bc2 {[%emt 0:01:28]} b5 {[%emt 0:00:33]} 10. a3 {[%emt 0:04:10]} a5 {[%emt 0:01:05]} 11. e4 {[%emt 0:03:22]} dxe4 {[%emt 0:02:25]} 12. Nxe4 {[%emt 0:00:48]} Bb7 {[%emt 0:00:15]} 13. Qe2 {[%emt 0:01:27]} Nxe4 {[%emt 0:05:08]} 14. Bxe4 {[%emt 0:01:10]} Bxe4 {[%emt 0:00:07]} 15. Qxe4 {[%emt 0:00:07]} Nf6 {[%emt 0:00:13]} 16. Qe2 {[%emt 0:05:17]} Nd5 {[%emt 0:04:57]} 17. Bd2 {[%emt 0:04:07]} Qc7 {[%emt 0:00:34]} 18. O-O {[%emt 0:01:34]} h6 {[%emt 0:04:12]} 19. Rac1 {[%emt 0:02:25]} Rfc8 {[%emt 0:00:34]} 20. Ne5 {[%emt 0:02:20]} Bd6 {[%emt 0:00:36]} 21. Qg4 {[%emt 0:01:24]} Bxe5 {[%emt 0:08:31]} 22. dxe5 {[%emt 0:01:07]} Qxe5 {[%emt 0:00:03]} 23. Bxh6 {[%emt 0:00:44]} f5 {[%emt 0:04:39]} 24. Qg6 {[%emt 0:01:41]} Qf6 {[%emt 0:06:32]} 25. Qxf6 {[%emt 0:00:43]} gxf6 {[%emt 0:00:03]} 26. Rfe1 {[%emt 0:01:50]} Kf7 {[%emt 0:01:48]} 27. Be3 {[%emt 0:01:13]} f4 {[%emt 0:01:27]} 28. Bd2 {[%emt 0:01:03]} Rg8 {[%emt 0:00:42]} 29. Re4 {[%emt 0:01:01]} e5 {[%emt 0:00:35]} 30. Rd1 {[%emt 0:01:32]} Rad8 {[%emt 0:04:32]} 31. Kf1 {[%emt 0:06:03]} Nb6 {[%emt 0:00:15]} 32. Ree1 {[%emt 0:00:51]} Na4 {[%emt 0:06:01]} 33. Bc1 {[%emt 0:00:15]} Nc5 {[%emt 0:01:43]} 34. h4 {[%emt 0:02:18]} Nd3 {[%emt 0:04:34]} 35. Re2 {[%emt 0:00:36]} Rg4 {[%emt 0:00:07]} 36. g3 {[%emt 0:01:35]} fxg3 {[%emt 0:00:09]} 37. fxg3 {[%emt 0:00:05]} Rxg3 {[%emt 0:00:06]} 38. Rh2 {[%emt 0:00:19]} Rdg8 {[%emt 0:00:46]} 39. h5 {[%emt 0:00:49]} Rg1+ {[%emt 0:00:22]} 40. Ke2 {[%emt 0:00:05]} Nxc1+ {[%emt 0:00:11]} 41. Kd2 {[%emt 0:01:03]} Rd8+ {[%emt 0:00:10]} 42. Kc2 {[%emt 0:00:15]} Rgxd1 {[%emt 0:00:28]} 43. h6 {[%emt 0:00:09]} Nb3 {[%emt 0:00:06]} 0-1

[Event "Nakhchivan Open 2024"]
[Site "Nakhchivan"]
[Date "2024.01.11"]
[Round "2.6"]
[White "Sevdimaliyev, Adil"]
[Black "Israilov, Agil"]
[Result "0-1"]
[ECO "B83"]
[WhiteElo "1410"]
[BlackElo "2114"]
[Annotator "TA RC"]
[PlyCount "121"]
[EventDate "2024.01.11"]
[EventType "swiss"]
[EventCountry "AZE"]
[SourceTitle "playchess.com"]
[Source "ChessBase"]
[SourceQuality "1"]
[TimeControl "5400+30"]

{[%evp 23,121,12,23,-9,1,0,0,0,0,-29,7,-35,-33,-47,-41,-45,-25,-20,-2,-21,-8,-30,-26,-27,-19,0,-24,-20,-15,-41,-33,-47,-11,-92,-103,-93,-85,-96,-49,-246,-254,-254,-265,-256,-247,-247,-237,-264,-268,-280,-276,-320,-318,-314,-286,-271,-240,-320,-321,-671,-671,-664,-664,-656,-656,-656,-656,-656,-641,-665,-654,-647,-645,-637,-637,-610,-536,-1150,-1120,-1303,-1114,-2271,-1047,-3529,-2706,-2027,-2345,-29976,-29977,-29968,-29969,-29981,-29982,-29982,-29982,-29990,-29991,-29991,-29991,-29994]} 1. e4 {[%emt 0:00:30]} c5 {[%emt 0:02:31]} 2. Nf3 {[%emt 0:00:09]} e6 {[%emt 0:00:05]} 3. d4 {[%emt 0:00:20]} cxd4 {[%emt 0:00:05]} 4. Nxd4 {[%emt 0:00:11]} Nf6 {[%emt 0:00:06]} 5. Nc3 {[%emt 0:00:24]} Nc6 {[%emt 0:00:05]} 6. Be2 {[%emt 0:00:31]} d6 {[%emt 0:01:34]} 7. O-O {[%emt 0:00:09]} Be7 {[%emt 0:00:04]} 8. Kh1 {[%emt 0:00:59]} O-O {[%emt 0:00:24]} 9. f4 {[%emt 0:00:20]} a6 {[%emt 0:01:56]} 10. a4 {[%emt 0:01:33]} Qc7 {[%emt 0:00:49]} 11. Bf3 {[%emt 0:01:35]} Bd7 {[%emt 0:00:55]} 12. Be3 {[%emt 0:01:18]} Rac8 {[%emt 0:00:39]} 13. Qe1 {[%emt 0:04:23]} Na5 {[%emt 0:02:40]} 14. Be2 {[%emt 0:03:52]} Nc4 {[%emt 0:01:44]} 15. Bc1 {[%emt 0:03:36] The position is equal.} Qb6 {[%emt 0:01:48][%csl LRb2,LRd4]} 16. Nf3 {[%emt 0:06:37]} Ng4 {[%emt 0:08:29]} (16... Nxb2 17. Rb1 $16) 17. Bxc4 {[%emt 0:03:00]} Rxc4 {[%emt 0:00:08]} 18. h3 {[%emt 0:01:52]} Nf6 {[%emt 0:01:10]} 19. e5 {[%emt 0:06:13]} dxe5 {[%emt 0:11:15]} 20. Nxe5 {[%emt 0:02:11]} Rc7 {[%emt 0:00:25]} 21. a5 {[%emt 0:01:43]} Qa7 {[%emt 0:00:27]} 22. Rf3 {[%emt 0:09:18]} Bc6 {[%emt 0:01:46]} 23. Rd3 {[%emt 0:02:16]} Nd5 {[%emt 0:10:30]} 24. Nxc6 {[%emt 0:01:39]} (24. Qg3 {with more complications.} Nb4 25. Be3 Bc5 26. Bxc5 Qxc5 27. Rd2) 24... bxc6 {[%emt 0:00:05]} 25. Nxd5 {[%emt 0:00:17]} cxd5 {[%emt 0:00:10]} 26. c3 {[%emt 0:00:15][%cal Of4f5]} Qb7 {[%emt 0:00:48]} 27. Qe2 {[%emt 0:02:03]} Rfc8 {[%emt 0:01:50]} 28. Qf3 {[%emt 0:01:05]} (28. Be3 $11 {keeps the balance.}) 28... Rc4 $17 {[%emt 0:03:54]} 29. f5 {[%emt 0:07:29]} Re4 $36 {[%emt 0:00:11][%mdl 2048] White is under strong pressure. Black is more active.} 30. Rd1 {[%emt 0:08:43] Inhibits Re1+.} Bf6 {[%emt 0:00:57]} (30... Rc6 $17 31. Be3 exf5 (31... Qxb2 32. Rab1 $14)) 31. g4 $2 {[%emt 0:02:27] This costs White the game.} (31. fxe6 $15 fxe6 32. Qd3) 31... d4 {[%emt 0:02:15][%cal Oe4e1] [#] Hoping for ...Re1+!} 32. Rf1 {[%emt 0:03:25]} exf5 {[%emt 0:02:00]} (32... dxc3 33. Ra4 exf5 (33... cxb2 34. Bxb2 exf5 35. Bxf6 $15) 34. gxf5) 33. gxf5 {[%emt 0:02:26]} dxc3 {[%emt 0:07:10]} 34. Ra4 {[%emt 0:04:57]} Re7 {[%emt 0:00:09]} ({Not} 34... cxb2 35. Bxb2 Qxb2 36. Rxe4 $17) ({But not} 34... Bd4 $2 35. Rxd4 cxb2 36. Bxb2 $18 (36. Qxe4 $2 Qxe4+ 37. Rxe4 b1=Q $19)) 35. Qxb7 {[%emt 0:02:35]} Rxb7 {[%emt 0:00:04]} 36. bxc3 {[%emt 0:00:13]} Rxc3 {[%emt 0:00:03][%cal Ob7b1]} 37. Re4 {[%emt 0:00:37][%cal Re4e8] [#]} h6 {[%emt 0:00:55]} (37... Rxh3+ $2 {too greedy.} 38. Kg2 h6 39. Kxh3 $18) 38. Re3 {[%emt 0:04:36]} Rc5 {[%emt 0:00:56]} 39. Bd2 {[%emt 0:01:57]} Rb2 {[%emt 0:02:45]} 40. Be1 {[%emt 0:02:28]} Rc1 {[%emt 0:01:35]} 41. Ref3 $2 (41. Re4) 41... Rbb1 $19 42. Re3 {[%emt 0:06:12]} Bh4 {[%emt 0:00:43]} 43. Bxh4 {[%emt 0:00:36] Threatens to win with Re8+.} Rxf1+ {[%emt 0:00:05][%mdl 4096] Endgame. KRR-KRB} 44. Kg2 {[%emt 0:00:08]} Rxf5 {[%emt 0:00:08]} 45. Bd8 {[%emt 0:00:20]} Ra1 {[%emt 0:00:15]} 46. Bb6 {[%emt 0:00:06]} Rfxa5 {[%emt 0:00:10]} 47. Bxa5 {[%emt 0:00:34]} Rxa5 {[%emt 0:00:07] KR-KR} 48. Re8+ {[%emt 0:00:06]} Kh7 {[%emt 0:00:04]} 49. Re7 {[%emt 0:00:06]} Kg6 {[%emt 0:00:07]} 50. Ra7 {[%emt 0:00:14]} Ra3 {[%emt 0:00:07]} 51. Ra8 {[%emt 0:00:16]} a5 {[%emt 0:00:09]} 52. Kh2 a4 {[%emt 0:00:05]} 53. Ra5 {[%emt 0:00:21]} Ra1 {[%emt 0:00:07]} 54. Kg2 {[%emt 0:00:14]} a3 {[%emt 0:00:05] aiming for ...a2.} 55. Kh2 {[%emt 0:00:19]} a2 {[%emt 0:00:04] Black mates.} 56. Kg2 {[%emt 0:00:08]} f5 {[%emt 0:00:06]} 57. Ra7 {[%emt 0:00:18]} f4 {[%emt 0:00:07]} 58. Kh2 {[%emt 0:00:57]} f3 {[%emt 0:00:08]} 59. h4 {[%emt 0:00:14]} f2 {[%emt 0:00:06]} 60. Ra6+ {[%emt 0:00:10]} Kh7 61. Kg2 {Weighted Error Value: White=0.51/Black=0.07 (flawless) .  Loses game:     	White=1     	---        Mistake:       	White=2     	Black=1      Inaccurate:     	White=4     	Black=2      OK:         	White=10    	Black=11     Best:        	White=1     	Black=2} 0-1

[Event "Nakhchivan Open 2024"]
[Site "Nakhchivan"]
[Date "2024.01.11"]
[Round "3.1"]
[White "Babayeva, Nasrin"]
[Black "Gasimov, Parviz"]
[Result "0-1"]
[ECO "A37"]
[WhiteElo "1806"]
[BlackElo "2362"]
[Annotator "RC"]
[PlyCount "110"]
[EventDate "2024.01.11"]
[EventType "swiss"]
[EventCountry "AZE"]
[SourceTitle "playchess.com"]
[Source "ChessBase"]
[SourceQuality "1"]
[TimeControl "5400+30"]

1. c4 c5 {[%emt 0:00:45]} 2. g3 {[%emt 0:00:14]} Nc6 {[%emt 0:01:01]} 3. Bg2 {[%emt 0:00:07]} g6 {[%emt 0:00:14]} 4. Nc3 {[%emt 0:00:09]} Bg7 {[%emt 0:00:07]} 5. Nf3 {[%emt 0:00:09]} e5 {[%emt 0:00:43]} 6. d3 {[%emt 0:00:13]} d6 {[%emt 0:01:55]} 7. O-O {[%emt 0:00:10]} Nge7 {[%emt 0:00:49]} 8. a3 {[%emt 0:00:26]} O-O {[%emt 0:01:26]} 9. Rb1 {[%emt 0:00:09]} a5 {[%emt 0:00:12]} 10. Ne1 {[%emt 0:00:11]} Be6 {[%emt 0:02:44]} 11. Nc2 {[%emt 0:00:09]} d5 {[%emt 0:02:02]} 12. cxd5 {[%emt 0:00:15]} Nxd5 {[%emt 0:00:06]} 13. Ne3 {[%emt 0:00:09]} Nde7 {[%emt 0:01:08]} 14. Ne4 {[%emt 0:02:11]} b6 {[%emt 0:02:14]} 15. Bd2 {[%emt 0:01:11]} a4 {[%emt 0:10:59]} 16. Nc4 {[%emt 0:03:20]} Rb8 {[%emt 0:11:41]} 17. Bg5 {[%emt 0:04:40]} f6 {[%emt 0:04:01]} 18. Be3 {[%emt 0:04:39]} Bd5 {[%emt 0:16:08]} 19. Nc3 {[%emt 0:05:17]} Bxg2 {[%emt 0:01:11]} 20. Kxg2 {[%emt 0:00:09]} b5 {[%emt 0:07:14]} 21. Nd2 {[%emt 0:00:16]} Nd4 {[%emt 0:02:59]} 22. b3 {[%emt 0:18:14]} axb3 {[%emt 0:03:08]} 23. Nxb3 {[%emt 0:00:12]} Nd5 {[%emt 0:06:30]} 24. Nxd5 {[%emt 0:00:43]} Qxd5+ {[%emt 0:00:04]} 25. Kg1 {[%emt 0:04:41]} Rfc8 {[%emt 0:04:08]} 26. Nxd4 {[%emt 0:04:01]} cxd4 {[%emt 0:03:28]} 27. Bd2 {[%emt 0:00:10]} Qa2 {[%emt 0:03:31]} 28. Bb4 {[%emt 0:04:48]} Bh6 {[%emt 0:01:39]} 29. Qb3+ {[%emt 0:02:12]} Qxb3 {[%emt 0:00:05]} 30. Rxb3 {[%emt 0:00:05]} Rc2 {[%emt 0:00:06]} 31. Re1 {[%emt 0:00:10]} Rbc8 {[%emt 0:06:55]} 32. Ba5 {[%emt 0:05:49]} Bf8 {[%emt 0:02:01]} 33. Bb4 {[%emt 0:03:24]} Bh6 {[%emt 0:01:14]} 34. Ba5 {[%emt 0:00:27]} Ra2 {[%emt 0:01:15]} 35. Rxb5 {[%emt 0:01:06]} Rxa3 {[%emt 0:00:35]} 36. Reb1 {[%emt 0:00:49]} Ra2 {[%emt 0:02:14]} 37. Rb8 {[%emt 0:02:45]} Rxb8 {[%emt 0:00:23]} 38. Rxb8+ {[%emt 0:00:08]} Kf7 {[%emt 0:00:13]} 39. Rb7+ {[%emt 0:00:19]} Ke6 {[%emt 0:00:37]} 40. Rxh7 Bf8 {[%emt 0:00:25]} 41. Bd8 {[%emt 0:04:58]} Rxe2 {[%emt 0:00:12]} 42. Ra7 {[%emt 0:01:11]} f5 {[%emt 0:01:24]} 43. Bg5 {[%emt 0:02:52]} e4 {[%emt 0:01:39]} 44. Ra6+ {[%emt 0:01:09]} Kf7 {[%emt 0:00:16]} 45. Ra7+ {[%emt 0:01:09]} Ke6 {[%emt 0:00:02]} 46. Ra6+ {[%emt 0:00:09]} Kd5 {[%emt 0:01:05]} 47. Rxg6 {[%emt 0:08:38]} exd3 {[%emt 0:00:05]} 48. h4 {[%emt 0:05:32]} d2 {[%emt 0:00:27]} 49. Bxd2 {[%emt 0:00:08]} Rxd2 {[%emt 0:00:02]} 50. Rf6 Bc5 {[%emt 0:01:17]} 51. Rxf5+ {[%emt 0:00:19]} Kc4 {[%emt 0:00:04]} 52. h5 {[%emt 0:01:57]} Re2 {[%emt 0:00:13]} 53. h6 {[%emt 0:00:51]} d3 {[%emt 0:01:00]} 54. h7 {[%emt 0:01:18]} Bd4 {[%emt 0:00:37]} 55. Kf1 {[%emt 0:01:23]} Re8 {[%emt 0:00:25]} 0-1

[Event "Nakhchivan Open 2024"]
[Site "Nakhchivan"]
[Date "2024.01.11"]
[Round "3.2"]
[White "Hasanzade, Toghrul"]
[Black "Gulumov, Muthat"]
[Result "1-0"]
[ECO "B40"]
[WhiteElo "2329"]
[BlackElo "1843"]
[Annotator "RC"]
[PlyCount "123"]
[EventDate "2024.01.11"]
[EventType "swiss"]
[EventCountry "AZE"]
[SourceTitle "playchess.com"]
[Source "ChessBase"]
[SourceQuality "1"]
[TimeControl "5400+30"]

1. e4 {[%emt 0:00:05]} c5 {[%emt 0:00:06]} 2. Nf3 {[%emt 0:00:40]} e6 {[%emt 0:00:06]} 3. c3 {[%emt 0:03:39]} d5 {[%emt 0:00:17]} 4. exd5 {[%emt 0:00:05]} exd5 {[%emt 0:00:06]} 5. d4 {[%emt 0:00:19]} Nc6 {[%emt 0:00:35]} 6. Bb5 {[%emt 0:00:29]} Bd6 {[%emt 0:00:07]} 7. dxc5 {[%emt 0:01:26]} Bxc5 {[%emt 0:00:05]} 8. O-O {[%emt 0:00:11]} Nge7 {[%emt 0:00:13]} 9. Nbd2 {[%emt 0:00:54]} O-O {[%emt 0:00:12]} 10. Nb3 {[%emt 0:00:08]} Bb6 {[%emt 0:00:10]} 11. h3 {[%emt 0:03:04]} Qd6 {[%emt 0:05:55]} 12. Bd3 {[%emt 0:16:38]} Ng6 {[%emt 0:06:52]} 13. Nbd4 {[%emt 0:08:52]} Nxd4 14. Nxd4 Ne5 {[%emt 0:09:40]} 15. Bf4 {[%emt 0:04:14]} Bc7 {[%emt 0:03:56]} 16. Nb5 {[%emt 0:05:53]} Nf3+ {[%emt 0:04:29]} 17. Qxf3 {[%emt 0:00:18]} Qxf4 {[%emt 0:00:05]} 18. Nxc7 {[%emt 0:00:15]} Qxc7 {[%emt 0:00:16]} 19. Qxd5 {[%emt 0:00:37]} Be6 {[%emt 0:00:18]} 20. Qf3 {[%emt 0:01:06]} Rad8 {[%emt 0:00:10]} 21. Rfd1 {[%emt 0:01:17]} Rd6 {[%emt 0:00:50]} 22. b3 {[%emt 0:01:47]} Rfd8 {[%emt 0:00:09]} 23. c4 {[%emt 0:05:41]} b6 {[%emt 0:01:10]} 24. Bc2 {[%emt 0:01:10]} Rxd1+ {[%emt 0:00:17]} 25. Rxd1 {[%emt 0:00:05]} Rxd1+ {[%emt 0:00:07]} 26. Qxd1 {[%emt 0:00:11]} g6 {[%emt 0:00:09]} 27. Be4 {[%emt 0:05:53]} Qe5 {[%emt 0:00:35]} 28. Bf3 {[%emt 0:00:23]} Qb2 {[%emt 0:00:58]} 29. Qe2 {[%emt 0:00:43]} Qa1+ {[%emt 0:00:54]} 30. Kh2 {[%emt 0:00:09]} Kg7 {[%emt 0:00:18]} 31. Qd2 {[%emt 0:00:56]} Qe5+ {[%emt 0:01:14]} 32. g3 {[%emt 0:00:15]} Qa1 {[%emt 0:01:54]} 33. Kg2 {[%emt 0:00:44]} h5 {[%emt 0:00:33]} 34. Bd5 {[%emt 0:03:01]} Qe5 {[%emt 0:02:58]} 35. Bxe6 {[%emt 0:01:36]} Qe4+ {[%emt 0:00:56]} 36. Kg1 {[%emt 0:03:06]} Qxe6 {[%emt 0:00:08]} 37. Qd4+ {[%emt 0:01:22]} Qf6 {[%emt 0:02:22]} 38. Qxf6+ {[%emt 0:06:12]} Kxf6 {[%emt 0:00:34]} 39. Kf1 {[%emt 0:00:08]} Ke5 {[%emt 0:00:12]} 40. Ke2 {[%emt 0:00:05]} Kd4 {[%emt 0:02:05]} 41. Kd2 {[%emt 0:00:10]} g5 {[%emt 0:02:02]} 42. Kc2 {[%emt 0:14:37]} g4 {[%emt 0:09:01]} 43. h4 {[%emt 0:01:40]} Ke4 {[%emt 0:04:49]} 44. Kc3 {[%emt 0:10:24]} Kf3 {[%emt 0:00:31]} 45. b4 {[%emt 0:00:05]} Kxf2 {[%emt 0:00:03]} 46. c5 {[%emt 0:00:03]} bxc5 {[%emt 0:00:12]} 47. bxc5 {[%emt 0:00:01]} Kxg3 {[%emt 0:00:05]} 48. c6 {[%emt 0:00:04]} Kh2 {[%emt 0:00:03]} 49. c7 {[%emt 0:00:03]} g3 {[%emt 0:00:04]} 50. c8=Q {[%emt 0:00:05]} g2 {[%emt 0:00:05]} 51. Qc7+ {[%emt 0:03:26]} Kh1 {[%emt 0:00:05]} 52. Qc6 {[%emt 0:00:12]} Kh2 {[%emt 0:00:03]} 53. Qd6+ {[%emt 0:00:05]} Kh1 {[%emt 0:00:16]} 54. Qd5 {[%emt 0:00:09]} Kh2 {[%emt 0:00:06]} 55. Qe5+ {[%emt 0:00:03]} Kh1 {[%emt 0:00:30]} 56. Qe4 {[%emt 0:01:15]} Kh2 {[%emt 0:00:04]} 57. Qf4+ {[%emt 0:00:04]} Kh1 {[%emt 0:00:31]} 58. Qf3 {[%emt 0:00:07]} Kh2 {[%emt 0:00:04]} 59. Qf2 {[%emt 0:00:16]} Kh1 {[%emt 0:00:04]} 60. Qxa7 {[%emt 0:00:29]} f5 {[%emt 0:00:12]} 61. Qb7 {[%emt 0:00:53]} f4 {[%emt 0:00:14]} 62. Qf3 {[%emt 0:00:22]} 1-0

[Event "Nakhchivan Open 2024"]
[Site "Nakhchivan"]
[Date "2024.01.11"]
[Round "3.3"]
[White "Katanov, Hatam"]
[Black "Kul, Ozdemir Efe"]
[Result "0-1"]
[ECO "E63"]
[WhiteElo "1661"]
[BlackElo "2223"]
[Annotator "TA"]
[PlyCount "46"]
[EventDate "2024.01.11"]
[EventType "swiss"]
[EventCountry "AZE"]
[SourceTitle "playchess.com"]
[Source "ChessBase"]
[SourceQuality "1"]
[TimeControl "5400+30"]

{[%evp 25,46,33,33,37,38,0,14,16,14,0,11,-362,-365,-438,-435,-437,-426,-442,-423,-641,-643,-766,-757]} 1. d4 {[%emt 0:00:03]} Nf6 {[%emt 0:01:04]} 2. c4 {[%emt 0:00:36]} g6 {[%emt 0:00:42]} 3. Nc3 {[%emt 0:00:21]} Bg7 {[%emt 0:00:51]} 4. g3 {[%emt 0:00:33]} d6 {[%emt 0:00:43]} 5. Bg2 {[%emt 0:00:32]} O-O {[%emt 0:00:19]} 6. Nf3 {[%emt 0:00:24]} Nc6 {[%emt 0:00:24]} 7. O-O {[%emt 0:00:58]} a6 {[%emt 0:00:15]} 8. e4 {[%emt 0:01:26]} Bg4 {[%emt 0:00:42]} 9. h3 {[%emt 0:00:46]} Bxf3 {[%emt 0:00:48]} 10. Bxf3 {[%emt 0:00:24]} Nd7 {[%emt 0:00:58]} 11. Be3 {[%emt 0:01:38]} e5 {[%emt 0:00:53]} 12. d5 {[%emt 0:01:33]} Nd4 {[%emt 0:01:21]} 13. Bg2 {[%emt 0:02:55]} c5 {[%emt 0:01:31]} 14. dxc6 {[%emt 0:01:07]} bxc6 {[%emt 0:00:36]} 15. Qd2 {[%emt 0:05:05]} Rb8 {[%emt 0:02:00]} 16. Rab1 {[%emt 0:05:43] Die Stellung ist ausgeglichen.} Qa5 {[%emt 0:03:09]} 17. Rfd1 {[%emt 0:05:30]} Qb4 {[%emt 0:01:49]} 18. b3 $2 {[%emt 0:04:02][%mdl 8192] [#]} (18. Ne2 $11) 18... Qxc3 $3 $19 {[%emt 0:00:18][%mdl 512]} 19. Bxd4 {[%emt 0:05:25]} (19. Rb2 Qxd2) 19... Qxd2 {[%emt 0:00:12] Schwarz steht klar auf Gewinn.} ({Finger weg von} 19... Qxd4 20. Qe1 Qa7 21. Rxd6 $19) 20. Rxd2 {[%emt 0:00:35]} exd4 {[%emt 0:00:05]} 21. e5 {[%emt 0:03:22]} Nxe5 {[%emt 0:00:17]} 22. f4 {[%emt 0:00:26]} (22. Rxd4 $142 Nf3+ 23. Bxf3 Bxd4 24. Bxc6) 22... Nxc4 {[%emt 0:00:13]} 23. Rc2 {[%emt 0:01:11]} Na3 {[%emt 0:00:07][%csl LRb1,LRc2] Schwarz nahm nach der Eröffnung die Zügel in die Hand.   Gewichteter Fehlerwert: Weiß=1.12/Schwarz=0.06 (makellos) .  Verlustzug:     	Weiß=1     	---        Fehler:       	Weiß=1     	---        Ungenau:       	Weiß=1     	---        OK:         	---       	Schwarz=3     Brilliant:      	---       	Schwarz=1} 0-1